fUST/lending_fUST_20240711
["ID","MTS","AMOUNT","RATE_DAILY","PERIOD"]
[331678286,1720629041171,-868.94,0.00032876,7]
[331678287,1720629041179,-503.65426862,0.00032876,7]
[331678288,1720629041189,-500.0,0.00032876,7]
[331678289,1720629041198,-500.0,0.00032876,7]
[331678290,1720629041207,-500.0,0.00032876,7]
[331678291,1720629041216,-519.533666,0.00032876,7]
[331678292,1720629041225,-519.533666,0.00032876,7]
[331678293,1720629041234,-519.533666,0.00032876,7]
[331678294,1720629041243,-506.28613852,0.00032876,7]
[331678295,1720629041252,-507.29056014,0.00032876,7]
[331678296,1720629041261,-519.533666,0.00032876,7]
[331678297,1720629041270,-519.533666,0.00032876,7]
[331678298,1720629041279,-519.533666,0.00032876,7]
[331678299,1720629041288,-502.39172908,0.00032876,7]
[331678300,1720629041297,-522.65825356,0.00032876,7]
[331678301,1720629041307,-151.0,0.00032876,7]
[331678302,1720629041316,-151.0,0.00032876,7]
[331678303,1720629041324,-151.0,0.00032876,7]
[331678304,1720629041334,-531.62223007,0.00032876,7]
[331678305,1720629041343,-500.0,0.00032876,7]
[331678306,1720629041352,-507.95538167,0.00032876,7]
[331678307,1720629041361,-916.0,0.00032876,7]
[331678308,1720629041370,-500.0,0.00032876,7]
[331678309,1720629041380,-500.0,0.00032876,7]
[331678310,1720629041389,-500.0,0.00032876,7]
[331678311,1720629041399,-1045.58,0.00032876,7]
[331678312,1720629041407,-789.14,0.00032876,7]
[331678313,1720629041416,-500.82595431,0.00032876,3]
[331678314,1720629041425,-1500.0,0.00032876,7]
[331678315,1720629041435,-500.0,0.00032876,7]
[331678316,1720629041444,-1573.3,0.00032876,7]
[331678317,1720629041453,-500.0,0.00032876,7]
[331678318,1720629041461,-524.63147779,0.00032876,7]
[331678319,1720629041471,-177.68416937,0.00032876,7]
[331678320,1720629041479,-500.0,0.00032876,7]
[331678321,1720629041489,-500.0,0.00032876,7]
[331678322,1720629041498,-500.0,0.00032876,7]
[331678323,1720629041507,-509.80991663,0.00032876,7]
[331678324,1720629041516,-779.68,0.00032876,7]
[331678325,1720629041525,-504.2,0.00032876,2]
[331678326,1720629041534,-500.0,0.00032876,7]
[331678327,1720629041543,-500.0,0.00032876,7]
[331678328,1720629041553,-500.0,0.00032876,7]
[331678329,1720629041562,-390.66100992,0.00032876,7]
[331678330,1720629041571,-511.08383652,0.00032876,7]
[331678331,1720629041580,-524.54736697,0.00032876,7]
[331678332,1720629041591,-151.0,0.00032876,7]
[331678333,1720629041600,-151.0,0.00032876,7]
[331678334,1720629041609,-500.0,0.00032876,7]
[331678335,1720629041619,-163.871449,0.00032876,7]
[331678336,1720629041628,-500.0,0.00032876,7]
[331678337,1720629041637,-602.28,0.00032876,7]
[331678338,1720629041646,-500.0,0.00032876,7]
[331678339,1720629041655,-500.0,0.00032876,7]
[331678340,1720629041666,-500.0,0.00032876,2]
[331678341,1720629041675,-516.38473904,0.00032876,7]
[331678342,1720629041685,-151.0,0.00032876,7]
[331678343,1720629041695,-151.0,0.00032876,7]
[331678344,1720629041704,-153.0,0.00032876,2]
[331678345,1720629041713,-151.0,0.00032876,7]
[331678346,1720629041723,-564.74916678,0.00032876,7]
[331678347,1720629041733,-500.0,0.00032876,7]
[331678348,1720629041743,-500.0,0.00032876,7]
[331678349,1720629041752,-595.0,0.00032876,5]
[331678350,1720629041762,-595.0,0.00032876,5]
[331678351,1720629041771,-595.0,0.00032876,5]
[331678352,1720629041781,-595.0,0.00032876,5]
[331678353,1720629041790,-500.0,0.00032876,7]
[331678354,1720629041799,-595.0,0.00032876,5]
[331678355,1720629041808,-595.0,0.00032876,5]
[331678356,1720629041818,-595.0,0.00032876,5]
[331678357,1720629041827,-595.0,0.00032876,5]
[331678358,1720629041838,-595.0,0.00032876,5]
[331678359,1720629041847,-595.0,0.00032876,5]
[331678360,1720629041856,-595.0,0.00032876,5]
[331678361,1720629041865,-595.0,0.00032876,5]
[331678362,1720629041875,-595.0,0.00032876,5]
[331678363,1720629041884,-595.0,0.00032876,5]
[331678364,1720629041894,-595.0,0.00032876,5]
[331678365,1720629041903,-595.0,0.00032876,5]
[331678366,1720629041912,-595.0,0.00032876,5]
[331678367,1720629041922,-595.0,0.00032876,5]
[331678368,1720629041931,-595.0,0.00032876,5]
[331678369,1720629041941,-595.0,0.00032876,5]
[331678370,1720629041950,-595.0,0.00032876,5]
[331678371,1720629041959,-500.0,0.00032876,7]
[331678372,1720629041970,-595.0,0.00032876,5]
[331678373,1720629041979,-535.39194579,0.00032876,7]
[331678374,1720629041989,-595.0,0.00032876,5]
[331678375,1720629041998,-595.19812219,0.00032876,5]
[331678376,1720629042007,-509.82568594,0.00032876,7]
[331678377,1720629042016,-516.65663321,0.00032876,7]
[331678378,1720629042026,-523.03987634,0.00032876,7]
[331678379,1720629042035,-500.0,0.00032876,7]
[331678380,1720629042044,-551.50224524,0.00032876,7]
[331678381,1720629042054,-645.67381914,0.00032876,7]
[331678382,1720629042064,-500.0,0.00032876,7]
[331678383,1720629042074,-151.0,0.00032876,7]
[331678384,1720629042083,-151.0,0.00032876,7]
[331678385,1720629042092,-151.0,0.00032876,7]
[331678386,1720629042102,-562.68953031,0.00032876,7]
[331678387,1720629042111,-518.20138431,0.00032876,7]
[331678388,1720629042120,-500.0,0.00032876,7]
[331678389,1720629042129,-500.0,0.00032876,7]
[331678390,1720629042138,-507.81925589,0.00032876,7]
[331678391,1720629042147,-500.0,0.00032876,7]
[331678392,1720629042156,-500.0,0.00032876,7]
[331678393,1720629042166,-500.0,0.00032876,7]
[331678394,1720629042176,-164.114838,0.00032876,7]
[331678395,1720629042185,-686.02,0.00032876,7]
[331678396,1720629042195,-164.114838,0.00032876,7]
[331678397,1720629042206,-164.114838,0.00032876,7]
[331678398,1720629042217,-500.0,0.00032876,7]
[331678399,1720629042228,-203.9096706,0.00032876,7]
[331678400,1720629042238,-500.0,0.00032876,7]
[331678401,1720629042249,-349.1670993,0.00032876,7]
[331678402,1720629042258,-500.0,0.00032876,7]
[331678403,1720629042268,-500.0,0.00032876,7]
[331678404,1720629042282,-164.114838,0.00032876,7]
[331678405,1720629042291,-164.114838,0.00032876,7]
[331678406,1720629042300,-511.07806878,0.00032876,7]
[331678407,1720629042310,-164.114838,0.00032876,7]
[331678408,1720629042319,-151.0,0.00032876,7]
[331678409,1720629042328,-151.0,0.00032876,7]
[331678410,1720629042338,-151.0,0.00032876,7]
[331678411,1720629042347,-511.58747215,0.00032876,7]
[331678412,1720629042356,-136.76693203,0.00032876,7]
[331678413,1720629042376,-363.23306797,0.00032876,7]
[331678414,1720629042386,-500.0,0.00032876,7]
[331678415,1720629042395,-504.56752431,0.00032876,7]
[331678416,1720629042404,-1390.95,0.00032876,7]
[331678417,1720629042413,-2458.75,0.00032876,7]
[331678418,1720629042422,-500.0,0.00032876,7]
[331678419,1720629042432,-500.0,0.00032876,7]
[331678420,1720629042441,-500.0,0.00032876,7]
[331678421,1720629042450,-500.0,0.00032876,7]
[331678422,1720629042460,-500.0,0.00032876,7]
[331678423,1720629042470,-500.0,0.00032876,7]
[331678424,1720629042479,-500.0,0.00032876,7]
[331678425,1720629042488,-500.0,0.00032876,7]
[331678426,1720629042497,-601.99941143,0.00032876,7]
[331678427,1720629042506,-500.0,0.00032876,7]
[331678428,1720629042516,-500.0,0.00032876,7]
[331678429,1720629042526,-518.07809964,0.00032876,7]
[331678431,1720629042622,-515.6080959,0.00032876,7]
[331678432,1720629042631,-514.08657191,0.00032876,7]
[331678433,1720629042641,-500.0,0.00032876,7]
[331678434,1720629042650,-500.0,0.00032876,7]
[331678435,1720629042659,-678.68,0.00032876,7]
[331678437,1720629042667,-540.79994748,0.00032876,7]
[331678438,1720629042677,-500.0,0.00032876,7]
[331678439,1720629042686,-560.43376218,0.00032876,7]
[331678440,1720629042695,-500.0,0.00032876,7]
[331678441,1720629042704,-500.0,0.00032876,7]
[331678442,1720629042713,-5484.90614061,0.00032876,7]
[331678460,1720629043365,-154.60575532,0.00027184,2]
[331678461,1720629043375,-529.09385939,0.00032876,7]
[331678462,1720629043384,-367.30137337,0.00032876,7]
[331678463,1720629043400,-132.69862663,0.00032876,7]
[331678464,1720629043409,-500.0,0.00032876,7]
[331678465,1720629043418,-500.0,0.00032876,7]
[331678466,1720629043427,-568.85471428,0.00032876,7]
[331678467,1720629043436,-537.76055636,0.00032876,7]
[331678468,1720629043445,-500.0,0.00032876,7]
[331678469,1720629043454,-500.0,0.00032876,7]
[331678470,1720629043463,-509.89322773,0.00032876,7]
[331678471,1720629043471,-1294.46,0.00032876,7]
[331678472,1720629043481,-523.1988214,0.00032876,7]
[331678473,1720629043490,-156.05359,0.00032876,7]
[331678474,1720629043499,-539.64664014,0.00032876,7]
[331678475,1720629043508,-500.0,0.00032876,7]
[331678476,1720629043517,-507.56325644,0.00032876,7]
[331678477,1720629043527,-504.78231499,0.00032876,7]
[331678478,1720629043537,-500.0,0.00032876,7]
[331678479,1720629043546,-500.0,0.00032876,7]
[331678480,1720629043555,-500.0,0.00032876,7]
[331678481,1720629043564,-195.230188,0.00032876,7]
[331678482,1720629043573,-195.230188,0.00032876,7]
[331678483,1720629043582,-500.0,0.00032876,7]
[331678484,1720629043592,-195.230188,0.00032876,7]
[331678485,1720629043601,-527.63172812,0.00032876,7]
[331678486,1720629043610,-500.0,0.00032876,7]
[331678487,1720629043619,-195.230188,0.00032876,7]
[331678488,1720629043629,-500.0,0.00032876,7]
[331678489,1720629043638,-195.230188,0.00032876,7]
[331678490,1720629043646,-195.230188,0.00032876,7]
[331678491,1720629043655,-515.62180217,0.00032876,7]
[331678492,1720629043664,-500.0,0.00032876,7]
[331678493,1720629043673,-500.0,0.00032876,7]
[331678494,1720629043682,-500.0,0.00032876,7]
[331678495,1720629043691,-522.34585384,0.00032876,7]
[331678496,1720629043700,-500.0,0.00032876,7]
[331678497,1720629043709,-500.0,0.00032876,7]
[331678498,1720629043719,-512.89456019,0.00032876,7]
[331678499,1720629043728,-169.95444653,0.00032876,7]
[331678534,1720629046529,-341.19021478,0.00032876,7]
[331678535,1720629046538,-195.95530833,0.00032876,7]
[331678536,1720629046552,-304.04469167,0.00032876,7]
[331678537,1720629046562,-500.0,0.00032876,7]
[331678538,1720629046571,-500.0,0.00032876,7]
[331678539,1720629046580,-160.99017,0.00032876,7]
[331678540,1720629046590,-160.99017,0.00032876,7]
[331678541,1720629046601,-151.0,0.00032876,7]
[331678542,1720629046610,-160.99017,0.00032876,7]
[331678543,1720629046619,-151.0,0.00032876,7]
[331678544,1720629046630,-160.99017,0.00032876,7]
[331678545,1720629046640,-151.0,0.00032876,7]
[331678546,1720629046650,-285.0,0.00032876,7]
[331678547,1720629046659,-500.0,0.00032876,7]
[331678548,1720629046669,-160.99017,0.00032876,7]
[331678549,1720629046679,-160.99017,0.00032876,7]
[331678550,1720629046688,-160.99017,0.00032876,7]
[331678551,1720629046699,-500.0,0.00032876,7]
[331678552,1720629046708,-160.99017,0.00032876,7]
[331678553,1720629046718,-500.00004,0.00032876,7]
[331678554,1720629046728,-500.0,0.00032876,7]
[331678555,1720629046738,-1016.26,0.00032876,7]
[331678556,1720629046747,-500.0,0.00032876,7]
[331678557,1720629046757,-578.15908465,0.00032876,7]
[331678558,1720629046767,-254.439859,0.00032876,7]
[331678559,1720629046776,-254.439859,0.00032876,7]
[331678560,1720629046786,-254.439859,0.00032876,7]
[331678561,1720629046796,-500.0,0.00032876,7]
[331678562,1720629046805,-254.439859,0.00032876,7]
[331678563,1720629046814,-151.0,0.00032876,7]
[331678564,1720629046823,-159.324785,0.00032876,7]
[331678565,1720629046834,-500.0,0.00032876,7]
[331678566,1720629046844,-254.439859,0.00032876,7]
[331678567,1720629046854,-500.0,0.00032876,7]
[331678568,1720629046863,-500.0,0.00032876,2]
[331678569,1720629046873,-254.439859,0.00032876,7]
[331678570,1720629046883,-254.439859,0.00032876,7]
[331678571,1720629046893,-254.439859,0.00032876,7]
[331678572,1720629046902,-48.29325995,0.00032876,7]
[331678573,1720629046915,-451.70674005,0.00032876,7]
[331678574,1720629046924,-173.42538037,0.00032876,7]
[331678575,1720629046935,-495.29461963,0.00032876,7]
[331678576,1720629046945,-500.0,0.00032876,7]
[331678577,1720629046954,-188.786583,0.00032876,7]
[331678578,1720629046964,-188.786583,0.00032876,7]
[331678579,1720629046974,-188.786583,0.00032876,7]
[331678580,1720629046983,-151.0,0.00032876,2]
[331678581,1720629046993,-188.786583,0.00032876,7]
[331678582,1720629047002,-151.0,0.00032876,2]
[331678583,1720629047012,-500.0,0.00032876,7]
[331678584,1720629047022,-151.0,0.00032876,2]
[331678585,1720629047031,-156.805447,0.00032876,2]
[331678586,1720629047040,-188.786583,0.00032876,7]
[331678587,1720629047049,-188.786583,0.00032876,7]
[331678588,1720629047060,-188.786583,0.00032876,7]
[331678589,1720629047069,-188.786583,0.00032876,7]
[331678590,1720629047079,-500.0,0.00032876,7]
[331678591,1720629047088,-634.7562326,0.00032876,7]
[331678592,1720629047101,-500.0,0.00032876,7]
[331678593,1720629047109,-2182.94,0.00032876,4]
[331678594,1720629047118,-281.17168229,0.00032876,7]
[331678595,1720629047132,-218.82831771,0.00032876,7]
[331678596,1720629047141,-500.0,0.00032876,7]
[331678597,1720629047150,-540.92680872,0.00032876,7]
[331678598,1720629047159,-500.0,0.00032876,7]
[331678599,1720629047168,-444.54396857,0.00032876,7]
[331678600,1720629047179,-60.10710898,0.00032876,7]
[331678601,1720629047188,-500.0,0.00032876,7]
[331678602,1720629047197,-504.18372509,0.00032876,7]
[331678603,1720629047208,-510.4210844,0.00032876,7]
[331678604,1720629047217,-500.0,0.00032876,7]
[331678605,1720629047226,-500.0,0.00032876,7]
[331678606,1720629047235,-500.0,0.00032876,7]
[331678607,1720629047244,-500.0,0.00032876,7]
[331678608,1720629047350,-500.0,0.00032876,7]
[331678609,1720629047361,-500.0,0.00032876,7]
[331678610,1720629047371,-503.92188385,0.00032876,7]
[331678611,1720629047381,-500.0,0.00032876,7]
[331678612,1720629047391,-500.0,0.00032876,7]
[331678613,1720629047400,-500.0,0.00032876,7]
[331678614,1720629047410,-500.0,0.00032876,7]
[331678615,1720629047419,-500.0,0.00032876,7]
[331678616,1720629047428,-80.00227909,0.00032876,7]
[331678617,1720629047576,-171.81695502,0.00032876,7]
[331678618,1720629047585,-500.0,0.00032876,7]
[331678619,1720629047596,-500.0,0.00032876,7]
[331678620,1720629047605,-500.0,0.00032876,7]
[331678621,1720629047615,-500.0,0.00032876,7]
[331678622,1720629047624,-500.0,0.00032876,7]
[331678623,1720629047633,-500.0,0.00032876,7]
[331678624,1720629047642,-500.0,0.00032876,7]
[331678625,1720629047651,-500.0,0.00032876,7]
[331678626,1720629047660,-500.0,0.00032876,7]
[331678627,1720629047670,-500.0,0.00032876,7]
[331678628,1720629047679,-500.0,0.00032876,7]
[331678629,1720629047688,-213.67300296,0.00032876,7]
[331678630,1720629047697,-500.0,0.00032876,7]
[331678631,1720629047706,-151.0,0.00032876,2]
[331678632,1720629047715,-151.0,0.00032876,2]
[331678633,1720629047725,-151.0,0.00032876,2]
[331678634,1720629047734,-505.21884778,0.00032876,7]
[331678635,1720629047743,-41.72073991,0.00032876,2]
[331678636,1720629047756,-109.27926009,0.00032876,2]
[331678637,1720629047765,-555.63487125,0.00032876,7]
[331678638,1720629207505,283.43817222,0.00016255,2]
[331678641,1720629423008,337.41599725,0.00016255,2]
[331678642,1720629439673,160.83586881,0.00015,2]
[331678653,1720629609420,131.36153259,0.00018182,2]
[331678654,1720629609454,23.70481229,0.00018182,2]
[331678675,1720629842858,167.14229884,0.0001,6]
[331678678,1720630041205,-870.94461845,0.00018899,2]
[331678679,1720630041226,-362.54454602,0.00018899,2]
[331678680,1720630041246,-251.7531477,0.000189,2]
[331678681,1720630041266,-790.54047591,0.00019164,2]
[331678682,1720630041287,-6863.87493251,0.0002,2]
[331678683,1720630041308,-300.0,0.00021094,2]
[331678684,1720630041329,-302.919685,0.00021096,2]
[331678685,1720630041348,-162.355941,0.00022032,2]
[331678686,1720630041366,-6547.81825355,0.00023,2]
[331678687,1720630041385,-251.7531477,0.000239,2]
[331678688,1720630041405,-276.700256,0.00024555,2]
[331678689,1720630041424,-52142.01242753,0.00025501,2]
[331678690,1720630041444,-166.666669,0.00025503,2]
[331678691,1720630041464,-402.60952539,0.00026574,2]
[331678692,1720630041483,-1399.7295083,0.00026991,2]
[331678693,1720630041502,-18957.9585867,0.00027,4]
[331678694,1720630041521,-12372.95,0.00027164,3]
[331678695,1720630041540,-14847.53,0.00027174,3]
[331678696,1720630041559,-1060.84230124,0.00027184,2]
[331678697,1720630041579,-302.919685,0.00027195,2]
[331678698,1720630041597,-362.92280747,0.0002738,2]
[331678699,1720630041618,-2853.78372587,0.0002739,2]
[331678700,1720630041638,-158.527152,0.00027397,120]
[331678701,1720630041662,-490.1,0.00027398,3]
[331678702,1720630041682,-163.36,0.00027408,3]
[331678703,1720630041702,-326.71,0.00027418,3]
[331678704,1720630041721,-653.42,0.00027428,3]
[331678705,1720630041741,-168.65,0.00027438,3]
[331678706,1720630041760,-257.53609886,0.00027467,2]
[331678707,1720630041892,-500.0,0.00027467,2]
[331678708,1720630041914,-192.39470163,0.00027467,2]
[331678709,1720630041934,-500.0,0.00027467,2]
[331678710,1720630041954,-500.0,0.00027467,2]
[331678711,1720630041976,-500.0,0.00027467,2]
[331678712,1720630042006,-500.0,0.00027467,2]
[331678713,1720630042028,-500.0,0.00027467,2]
[331678714,1720630042053,-500.0,0.00027467,2]
[331678715,1720630042077,-500.0,0.00027467,2]
[331678716,1720630042097,-224.23404125,0.00027467,2]
[331678717,1720630042117,-500.0,0.00027467,2]
[331678718,1720630042137,-500.0,0.00027467,2]
[331678719,1720630042158,-500.0,0.00027467,2]
[331678720,1720630042179,-500.0,0.00027467,2]
[331678721,1720630042200,-500.0,0.00027467,2]
[331678722,1720630042221,-500.0,0.00027467,2]
[331678723,1720630042243,-500.0,0.00027467,2]
[331678724,1720630042264,-500.0,0.00027467,2]
[331678725,1720630042285,-500.0,0.00027467,2]
[331678726,1720630042305,-500.0,0.00027467,2]
[331678727,1720630042325,-500.0,0.00027467,2]
[331678728,1720630042345,-500.0,0.00027467,2]
[331678729,1720630042365,-500.0,0.00027467,2]
[331678730,1720630042389,-500.0,0.00027467,2]
[331678731,1720630042409,-500.0,0.00027467,2]
[331678732,1720630042432,-500.0,0.00027467,2]
[331678733,1720630042453,-500.0,0.00027467,2]
[331678734,1720630042473,-500.0,0.00027467,2]
[331678735,1720630042493,-500.0,0.00027467,2]
[331678736,1720630042514,-500.0,0.00027467,2]
[331678737,1720630042534,-500.0,0.00027467,2]
[331678738,1720630042554,-500.0,0.00027467,2]
[331678739,1720630042574,-500.0,0.00027467,2]
[331678740,1720630042594,-500.0,0.00027467,2]
[331678741,1720630042613,-500.0,0.00027467,2]
[331678742,1720630042634,-500.0,0.00027467,2]
[331678743,1720630042654,-500.0,0.00027467,2]
[331678744,1720630042674,-500.0,0.00027467,2]
[331678745,1720630042694,-500.0,0.00027467,2]
[331678746,1720630042714,-500.0,0.00027467,2]
[331678747,1720630042735,-500.0,0.00027467,2]
[331678748,1720630042757,-500.0,0.00027467,2]
[331678749,1720630042778,-500.0,0.00027467,2]
[331678750,1720630042799,-500.0,0.00027467,2]
[331678751,1720630042819,-703.46490708,0.00027467,2]
[331678752,1720630042840,-703.46490708,0.00027467,2]
[331678753,1720630042860,-703.46490708,0.00027467,2]
[331678754,1720630042881,-703.46490708,0.00027467,2]
[331678755,1720630042901,-703.46490708,0.00027467,2]
[331678756,1720630042921,-703.46490708,0.00027467,2]
[331678757,1720630042942,-703.46490708,0.00027467,2]
[331678758,1720630042963,-165.20417015,0.00027467,2]
[331678759,1720630077522,543.97000005,0.00014,2]
[331678760,1720630084630,178.23445969,0.00012121,2]
[331678761,1720630084661,25.14439752,0.00012121,2]
[331678763,1720630121345,876.43403161,0.00014692,2]
[331678764,1720630121376,913.05157087,0.00014692,2]
[331678765,1720630121407,901.57842913,0.00014692,2]
[331678766,1720630121437,766.94011244,0.00014692,2]
[331678767,1720630145781,134.63831669,0.00014692,2]
[331678768,1720630145806,5076.78975117,0.00014692,2]
[331678918,1720630233479,-8739.39508762,0.000198,2]
[331678920,1720630233491,-545.87563572,0.000198,2]
[331678991,1720630238439,-42856.74170419,0.000198,2]
[331678993,1720630238449,-297.7828164,0.000199,2]
[331678994,1720630238458,-6865.55878528,0.0002,2]
[331678996,1720630238468,-170.717556,0.00021096,2]
[331678997,1720630238479,-297.78281639,0.000234,2]
[331678998,1720630238490,-166.666666,0.00025139,2]
[331678999,1720630238500,-30000.0,0.00025501,2]
[331679000,1720630238510,-738.54816533,0.00025769,2]
[331679001,1720630238519,-437.38,0.00025839,3]
[331679002,1720630238529,-13092.11,0.00025839,3]
[331679003,1720630238538,-8874.76,0.00025849,3]
[331679004,1720630238548,-15710.53,0.00025849,3]
[331679005,1720630238557,-72041.789836,0.00025859,3]
[331679006,1720630238567,-297.78281639,0.000269,2]
[331679007,1720630238576,-4678.72838059,0.000269,2]
[331679008,1720630238586,-168.0,0.00027,2]
[331679009,1720630238595,-4678.72838057,0.00027025,2]
[331679010,1720630238604,-4678.72838057,0.0002715,2]
[331679011,1720630238614,-874.76,0.00027209,3]
[331679012,1720630238623,-4678.72838057,0.00027275,2]
[331679013,1720630238633,-4678.72838057,0.000274,2]
[331679014,1720630238644,-469.35933792,0.00027455,2]
[331679015,1720630238653,-500.0,0.00027455,2]
[331679016,1720630238662,-500.0,0.00027455,2]
[331679017,1720630238672,-500.0,0.00027455,2]
[331679018,1720630238681,-500.0,0.00027455,2]
[331679019,1720630238690,-500.0,0.00027455,2]
[331679020,1720630238700,-500.0,0.00027455,2]
[331679021,1720630238710,-500.0,0.00027455,2]
[331679022,1720630238719,-500.0,0.00027455,2]
[331679023,1720630238741,-500.0,0.00027455,2]
[331679024,1720630238750,-500.0,0.00027455,2]
[331679025,1720630238760,-500.0,0.00027455,2]
[331679026,1720630238771,-500.0,0.00027455,2]
[331679027,1720630238781,-500.0,0.00027455,2]
[331679028,1720630238791,-500.0,0.00027455,2]
[331679029,1720630238802,-500.0,0.00027455,2]
[331679030,1720630238813,-500.0,0.00027455,2]
[331679031,1720630238823,-500.0,0.00027455,2]
[331679032,1720630238834,-500.0,0.00027455,2]
[331679033,1720630238844,-500.0,0.00027455,2]
[331679034,1720630238854,-500.0,0.00027455,2]
[331679035,1720630238864,-500.0,0.00027455,2]
[331679036,1720630238874,-500.0,0.00027455,2]
[331679037,1720630238884,-500.0,0.00027455,2]
[331679038,1720630238894,-500.0,0.00027455,2]
[331679039,1720630238904,-500.0,0.00027455,2]
[331679040,1720630238914,-500.0,0.00027455,2]
[331679041,1720630238924,-500.0,0.00027455,2]
[331679042,1720630238934,-500.0,0.00027455,2]
[331679043,1720630238944,-500.0,0.00027455,2]
[331679044,1720630238954,-500.0,0.00027455,2]
[331679045,1720630238964,-500.0,0.00027455,2]
[331679046,1720630238974,-500.0,0.00027455,2]
[331679047,1720630238984,-500.0,0.00027455,2]
[331679048,1720630238993,-500.0,0.00027455,2]
[331679049,1720630239003,-500.0,0.00027455,2]
[331679050,1720630239013,-500.0,0.00027455,2]
[331679051,1720630239023,-500.0,0.00027455,2]
[331679052,1720630239034,-242.74085539,0.00027455,2]
[331679053,1720630239044,-500.0,0.00027455,2]
[331679054,1720630239055,-500.0,0.00027455,2]
[331679055,1720630239065,-500.0,0.00027455,2]
[331679056,1720630239076,-500.0,0.00027455,2]
[331679057,1720630239086,-500.0,0.00027455,2]
[331679058,1720630239096,-500.0,0.00027455,2]
[331679059,1720630239107,-500.0,0.00027455,2]
[331679060,1720630239116,-500.0,0.00027455,2]
[331679061,1720630239127,-500.0,0.00027455,2]
[331679062,1720630239140,-500.0,0.00027455,2]
[331679063,1720630239150,-500.0,0.00027455,2]
[331679064,1720630239160,-19638.91983542,0.00027456,5]
[331679065,1720630239172,-72041.789836,0.00027457,3]
[331679066,1720630239182,-216125.369508,0.00027458,3]
[331679067,1720630239192,-167.04605766,0.00027467,2]
[331679068,1720630239203,-241.47792881,0.00027467,2]
[331679069,1720630239212,-500.0,0.00027467,2]
[331679070,1720630239223,-500.0,0.00027467,2]
[331679071,1720630239233,-500.0,0.00027467,2]
[331679072,1720630239243,-413.87095812,0.00027467,2]
[331679073,1720630239254,-500.0,0.00027467,2]
[331679074,1720630239265,-573.54328621,0.00027467,2]
[331679075,1720630239276,-500.0,0.00027467,2]
[331679076,1720630239287,-500.0,0.00027467,2]
[331679077,1720630239297,-500.0,0.00027467,2]
[331679078,1720630239307,-500.0,0.00027467,2]
[331679079,1720630239318,-500.0,0.00027467,2]
[331679080,1720630239329,-156.3285878,0.00027467,2]
[331679081,1720630239339,-500.0,0.00027467,2]
[331679082,1720630239350,-400.0,0.00027467,2]
[331679083,1720630239360,-139345.40134709,0.00027468,2]
[331679084,1720630239371,-43664.05653873,0.000275,2]
[331679085,1720630239381,-738.54816532,0.00027504,2]
[331679086,1720630239394,-168.0,0.00027671,2]
[331679087,1720630239405,-1343.96727085,0.000279,2]
[331679088,1720630239415,-26956.75716544,0.0002799,2]
[331679089,1720630239428,-348.36389326,0.00027999,2]
[331679090,1720630239439,-229.31696231,0.00028,30]
[331679091,1720630239449,-525.91799695,0.00028,2]
[331679092,1720630239460,-154.55950541,0.00028,2]
[331679093,1720630239470,-503.64031218,0.00028,2]
[331679094,1720630239481,-798.78016452,0.000285,2]
[331679095,1720630239492,-166.666666,0.00028565,2]